bitfinex/quotes_SOLUSD_20241118
["timestamp","ask_amount","ask_price","bid_price","bid_amount"]
[1731928407450,15.27127699,246.03,245.96,28.59797699]
[1731928407749,15.27127699,246.03,245.96,32.66347699]
[1731928407933,15.27127699,246.03,245.96,17.3922]
[1731928408322,15.27127699,246.03,245.97,0.12549]
[1731928409225,15.27127699,246.03,245.96,23.4909]
[1731928409430,15.27127699,245.99,245.96,13.3267]
[1731928409635,15.27127699,245.97,245.96,13.3267]
[1731928410242,15.27127699,245.99,245.96,13.3267]
[1731928410443,15.27127699,246.01,245.96,17.3923]
[1731928410946,15.27127699,246.01,245.96,13.3267]
[1731928411450,15.27127699,246.03,245.96,17.3922]
[1731928412349,0.1,246.14,245.96,17.3922]
[1731928412350,15.27127699,246.09,246.0,15.27127699]
[1731928412555,15.27127699,246.11,246.03,0.21916462]
[1731928412738,15.27127699,246.19,246.11,0.09367462]
[1731928413239,4.0605,246.27,246.09,15.27127699]
[1731928413240,15.27127699,246.21,246.14,0.12549]
[1731928413753,15.27127699,246.21,246.13,4.0627]
[1731928413957,15.27127699,246.17,246.14,0.12549]
[1731928414143,15.27127699,246.15,246.11,10.1577]
[1731928414330,15.27127699,246.15,246.11,14.2209]
[1731928414658,15.27127699,246.17,246.12,0.12549]
[1731928415133,15.27127699,246.19,246.12,0.25098]
[1731928415734,15.27127699,246.17,246.12,0.25098]
[1731928415938,15.27127699,246.17,246.12,4.31388]
[1731928416243,15.27127699,246.13,246.06,44.2328]
[1731928416429,15.27127699,246.08,246.06,44.2328]
[1731928416629,15.27127699,246.08,245.99,10.1626]
[1731928416630,15.27127699,246.08,245.99,23.0322]
[1731928416849,15.27127699,246.03,245.99,23.0322]
[1731928417232,15.27127699,246.05,245.99,27.0974]
[1731928418830,15.27127699,246.05,245.99,23.0322]
[1731928419361,15.27127699,246.05,246.0,0.12549]
[1731928419651,15.27127699,246.03,245.99,23.0322]
[1731928419955,15.27127699,246.01,245.99,12.8696]
[1731928420261,15.27127699,246.01,245.92,16.209]
[1731928420454,15.27127699,245.95,245.92,12.1428]
[1731928421337,4.0649,246.01,245.92,12.1428]
[1731928421338,15.27127699,245.93,245.92,12.1428]
[1731928421668,15.27127699,245.93,245.85,12.8533]
[1731928421842,15.27127699,245.88,245.85,12.8533]
[1731928422256,15.27127699,245.9,245.85,12.8533]
[1731928422563,15.27127699,245.9,245.85,16.9207]
[1731928423255,15.27127699,245.9,245.85,12.8533]
[1731928424052,15.27127699,245.88,245.82,10.17]
[1731928424258,15.27127699,245.88,245.82,14.238]
[1731928424444,15.27127699,245.9,245.82,14.238]
[1731928425372,15.27127699,245.86,245.82,14.238]
[1731928425538,15.27127699,245.88,245.82,14.238]
[1731928426450,15.27127699,245.84,245.82,10.17]
[1731928426655,15.27127699,245.86,245.82,10.17]
[1731928426965,15.27127699,245.84,245.79,4.0685]
[1731928427169,15.27127699,245.86,245.79,4.0685]
[1731928427455,15.27127699,245.8,245.76,10.1722]
[1731928428154,15.27127699,245.8,245.76,14.2412]
[1731928428556,15.27127699,245.8,245.73,15.27127699]
[1731928428860,4.0675,245.85,245.73,15.27127699]
[1731928429063,15.27127699,245.81,245.73,15.27127699]
[1731928431066,15.27127699,245.83,245.75,15.27127699]
[1731928431545,15.27127699,245.81,245.73,14.2431]
[1731928432037,15.27127699,245.77,245.68,28.00457699]
[1731928432236,15.27127699,245.77,245.7,15.27127699]
[1731928432939,15.27127699,245.79,245.7,15.27127699]
[1731928433140,15.27127699,245.81,245.72,15.27127699]
[1731928433364,15.27127699,245.81,245.74,15.27127699]
[1731928434242,15.27127699,245.83,245.74,15.27127699]
[1731928434558,15.27127699,245.83,245.75,23.776884]
[1731928434759,230.2,245.99,245.79,0.12549]
[1731928435060,15.27127699,245.86,245.78,15.27127699]
[1731928435261,15.27127699,245.86,245.79,23.776884]
[1731928435467,4.0655,245.97,245.76,14.36699]
[1731928435468,15.27127699,245.82,245.76,14.2415]
[1731928435656,0.09367462,245.95,245.76,14.2415]
[1731928435859,15.27127699,245.84,245.76,29.51277699]
[1731928437349,15.27127699,245.78,245.7,25.44607699]
[1731928437549,15.27127699,245.8,245.72,15.27127699]
[1731928438170,15.27127699,245.86,245.78,15.27127699]
[1731928438568,15.27127699,245.86,245.78,29.51137699]
[1731928438774,15.27127699,245.84,245.78,14.2401]
[1731928439210,15.27127699,245.86,245.79,24.027864]
[1731928439385,15.27127699,245.88,245.8,15.27127699]
[1731928440173,15.27127699,245.86,245.79,24.027864]
[1731928440372,15.27127699,245.88,245.81,4.0681]
[1731928440972,15.27127699,245.84,245.82,12.9526]
[1731928441354,15.27127699,245.86,245.82,12.9526]
[1731928442497,15.27127699,245.9,245.83,14.2374]
[1731928442701,15.27127699,245.88,245.83,14.2374]
[1731928442889,15.27127699,245.86,245.77,10.1719]
[1731928443086,15.27127699,245.86,245.78,0.09367462]
[1731928443319,84.2282,245.99,245.77,10.1719]
[1731928443320,15.27127699,245.84,245.77,10.1719]
[1731928443483,15.27127699,245.86,245.78,0.09367462]
[1731928443682,15.27127699,245.86,245.77,10.1719]
[1731928444401,15.27127699,245.86,245.77,14.2407]
[1731928444587,15.27127699,245.86,245.78,15.27127699]
[1731928444988,15.27127699,245.86,245.79,0.09367462]
[1731928445206,15.27127699,245.86,245.79,0.12549]
[1731928445506,15.27127699,245.86,245.79,24.027864]
[1731928446000,15.27127699,245.86,245.8,14.2391]
[1731928446198,15.27127699,245.86,245.8,10.1708]
[1731928446598,15.27127699,245.84,245.8,10.1708]
[1731928447408,15.27127699,245.88,245.8,10.1708]
[1731928447595,15.27127699,245.86,245.8,10.1708]
[1731928448005,15.27127699,245.86,245.8,14.2391]
[1731928448714,15.27127699,245.88,245.81,23.776884]
[1731928449014,15.27127699,245.92,245.84,0.34465462]
[1731928449416,15.27127699,245.9,245.84,0.25098]
[1731928449703,4.0655,245.97,245.84,0.25098]
[1731928449704,15.27127699,245.92,245.84,15.52225699]
[1731928449917,15.27127699,245.92,245.86,0.25098]
[1731928450095,15.27127699,245.92,245.87,14.235]
[1731928450296,15.27127699,246.0,245.83,15.27127699]
[1731928450297,15.27127699,245.9,245.83,15.27127699]
[1731928450571,15.27127699,245.9,245.77,14.2409]
[1731928450572,15.27127699,245.9,245.84,23.776884]
[1731928451015,15.27127699,245.88,245.81,23.776884]
[1731928451807,15.27127699,245.9,245.83,27.844684]
[1731928452021,15.27127699,245.92,245.85,23.776884]
[1731928452700,15.27127699,245.94,245.86,0.25098]
[1731928453099,15.27127699,245.92,245.88,23.776884]
[1731928454318,15.27127699,245.92,245.88,27.843684]
[1731928454499,15.27127699,245.92,245.82,25.44107699]
[1731928454500,15.27127699,245.9,245.82,25.44107699]
[1731928454698,15.27127699,245.86,245.67,12.5286]
[1731928454919,15.27127699,245.84,245.75,15.27127699]
[1731928455121,15.27127699,245.86,245.77,15.27127699]
[1731928455327,15.27127699,245.88,245.79,15.27127699]
[1731928455506,15.27127699,245.9,245.81,15.27127699]
[1731928455719,15.27127699,245.92,245.83,15.27127699]
[1731928456104,15.27127699,245.88,245.8,45.4402]
[1731928456300,15.27127699,245.88,245.82,0.12549]
[1731928456615,15.27127699,245.9,245.82,0.12549]
[1731928457210,15.27127699,245.88,245.81,14.2385]
[1731928457807,15.27127699,245.86,245.81,14.2385]
[1731928458132,15.27127699,245.88,245.81,14.2385]
[1731928458308,9.54049152,245.85,245.8,12.4286]
[1731928459316,30.0,245.83,245.8,12.4286]
[1731928459518,9.54049152,245.87,245.8,12.4286]
[1731928459807,20.0,245.97,245.8,12.4286]
[1731928459808,4.0659,245.95,245.81,23.776884]
[1731928460013,9.54049152,245.9,245.81,23.776884]
[1731928460209,9.54049152,245.88,245.81,23.776884]
[1731928460630,9.54049152,245.86,245.8,14.239]
[1731928460922,9.54049152,245.86,245.73,12.1577]
[1731928460923,9.54049152,245.82,245.74,10.173]
[1731928461229,9.54049152,245.8,245.74,10.173]
[1731928461423,9.54049152,245.8,245.74,14.2423]
[1731928462730,9.54049152,245.78,245.74,14.2423]
[1731928462919,30.0,245.79,245.74,14.2423]
[1731928463725,9.54049152,245.8,245.74,14.2423]
[1731928464108,9.54049152,245.78,245.74,10.173]
[1731928464313,9.54049152,245.78,245.73,12.1577]
[1731928464530,9.54049152,245.76,245.62,12.8067]
[1731928464828,9.54049152,245.74,245.63,23.78909152]
[1731928465128,9.54049152,245.74,245.65,9.54049152]
[1731928465717,9.54049152,245.74,245.66,14.2472]
[1731928465930,9.54049152,245.69,245.66,14.2472]
[1731928466103,9.54049152,245.72,245.66,14.2472]
[1731928466711,9.54049152,245.72,245.66,10.1766]
[1731928467630,9.54049152,245.74,245.66,10.1766]
[1731928468721,9.54049152,245.74,245.67,23.776884]
[1731928470705,9.54049152,245.74,245.68,14.2461]
[1731928471115,9.54049152,245.72,245.68,14.2461]
[1731928471630,9.54049152,245.74,245.69,23.776884]
[1731928472810,9.54049152,245.74,245.7,14.245]
[1731928473018,9.54049152,245.7,245.6,14.2507]
[1731928473223,9.54049152,245.7,245.61,9.54049152]
[1731928473604,9.54049152,245.67,245.6,14.2507]
[1731928473800,9.54049152,245.67,245.6,23.79119152]
[1731928474015,9.54049152,245.69,245.6,23.79119152]
[1731928474422,9.54049152,245.67,245.6,14.2507]
[1731928475500,9.54049152,245.69,245.61,23.776884]
[1731928475882,9.54049152,245.67,245.62,14.2496]
[1731928476077,30.0,245.66,245.62,14.2496]
[1731928476794,9.54049152,245.65,245.62,14.2496]
[1731928477002,9.54049152,245.65,245.57,14.2524]
[1731928477207,9.54049152,245.63,245.57,14.2524]
[1731928477613,30.0,245.66,245.58,9.54049152]
[1731928477804,39.54049152,245.66,245.58,9.54049152]
[1731928478002,9.54049152,245.64,245.57,23.79289152]
[1731928478301,9.54049152,245.65,245.57,23.79289152]
[1731928478515,9.54049152,245.65,245.58,23.776884]
[1731928479285,39.54049152,245.66,245.6,23.776884]
[1731928479598,30.0,245.66,245.6,23.776884]
[1731928480094,30.0,245.66,245.6,33.31737552]
[1731928480298,29.73,245.66,245.6,33.31737552]
[1731928480490,29.73,245.66,245.61,14.2501]
[1731928481012,9.54049152,245.62,245.54,10.1812]
[1731928481185,9.54049152,245.61,245.54,10.1812]
[1731928481485,39.54049152,245.62,245.54,19.72169152]
[1731928481681,30.0,245.62,245.56,9.54049152]
[1731928482192,9.64049152,245.76,245.54,10.1812]
[1731928482193,30.0,245.6,245.57,9.54049152]
[1731928482394,9.54049152,245.64,245.54,10.1812]
[1731928482599,9.54049152,245.63,245.56,9.54049152]
[1731928482797,9.54049152,245.62,245.55,9.54049152]
[1731928483006,9.54049152,245.63,245.56,9.54049152]
[1731928483193,9.54049152,245.64,245.57,9.54049152]
[1731928484106,9.54049152,245.65,245.58,23.776884]
[1731928484404,9.64049152,245.76,245.6,36.207884]
[1731928484405,9.54049152,245.66,245.6,36.207884]
[1731928484613,9.54049152,245.67,245.6,36.207884]
[1731928484997,9.64049152,245.76,245.6,36.207884]
[1731928485217,9.54049152,245.64,245.6,12.431]
[1731928486301,4.16277462,245.75,245.61,14.2501]
[1731928486302,9.54049152,245.65,245.61,14.2501]
[1731928488997,4.0699,245.71,245.61,14.2501]
[1731928489219,9.54049152,245.62,245.51,27.1224]
[1731928489401,9.54049152,245.6,245.53,9.54049152]
[1731928489898,0.09367462,245.69,245.55,9.54049152]
[1731928490109,9.54049152,245.63,245.56,9.54049152]
[1731928490304,30.0,245.59,245.55,9.54049152]
[1731928490598,30.0,245.59,245.58,33.44286552]
[1731928490809,30.0,245.59,245.58,37.38927552]
[1731928491014,9.54049152,245.68,245.58,37.51476552]
[1731928491226,9.54049152,245.67,245.6,9.54049152]
[1731928491408,9.54049152,245.68,245.61,33.44286552]
[1731928491595,9.63416614,245.69,245.61,9.54049152]
[1731928491921,9.54049152,245.67,245.62,23.776884]
[1731928492094,9.54049152,245.67,245.61,23.776884]
[1731928492294,9.54049152,245.66,245.59,33.44286552]
[1731928492729,0.09367462,245.69,245.58,34.6117]
[1731928492730,9.54049152,245.65,245.58,14.2518]
[1731928493315,0.09367462,245.69,245.58,14.2518]
[1731928493316,9.54049152,245.67,245.58,14.2518]
[1731928493527,0.09367462,245.69,245.58,14.2518]
[1731928493698,9.54049152,245.64,245.58,14.2518]
[1731928493897,9.54049152,245.66,245.59,9.54049152]
[1731928494106,0.09367462,245.69,245.62,23.776884]
[1731928494395,9.63416614,245.69,245.62,23.776884]
[1731928494921,9.63416614,245.69,245.64,0.12549]
[1731928495218,0.09367462,245.69,245.66,23.776884]
[1731928495403,30.0,245.67,245.66,23.902374]
[1731928495718,0.09367462,245.69,245.68,0.44465462]
[1731928495893,9.54049152,245.81,245.75,0.12549]
[1731928496592,30.0,245.76,245.75,88.56053862]
[1731928496894,9.54049152,245.9,245.8,23.902374]
[1731928497110,9.54049152,245.9,245.81,0.12549]
[1731928497497,9.54049152,245.88,245.81,0.12549]
[1731928497822,9.54049152,245.86,245.81,0.12549]
[1731928498401,9.54049152,245.88,245.81,0.25098]
[1731928498599,9.54049152,245.88,245.83,23.902374]
[1731928499244,9.54049152,245.88,245.83,23.776884]
[1731928499412,9.54049152,245.88,245.84,0.12549]
[1731928499617,9.54049152,245.9,245.84,0.12549]
[1731928500416,9.54049152,246.0,245.84,0.12549]
[1731928500417,4.0651,246.0,245.84,0.12549]
[1731928500624,9.54049152,245.91,245.84,0.12549]
[1731928500918,9.54049152,245.91,245.86,23.902374]
[1731928502096,9.54049152,245.91,245.87,14.235]
[1731928502317,9.54049152,246.0,245.8,4.0683]
[1731928502318,9.54049152,245.88,245.8,4.0683]
[1731928502518,9.54049152,245.86,245.8,4.0683]
[1731928502821,9.54049152,245.91,245.83,9.54049152]
[1731928503119,9.54049152,245.93,245.85,9.54049152]
[1731928503321,4.4897,246.07,245.87,22.71619152]
[1731928503523,9.54049152,245.96,245.9,23.776884]
[1731928503996,9.54049152,245.96,245.89,9.54049152]
[1731928504197,9.51035152,245.94,245.89,4.0668]
[1731928504405,9.54049152,245.95,245.89,4.0668]
[1731928505125,9.54049152,245.93,245.89,10.1671]
[1731928505304,9.54049152,245.93,245.89,14.2339]
[1731928505711,4.0645,246.03,245.89,14.2339]
[1731928505712,9.54049152,245.95,245.89,14.2339]
[1731928507024,9.54049152,245.99,245.9,33.44286552]
[1731928508119,9.54049152,245.97,245.92,23.776884]
[1731928508325,9.54049152,245.99,245.93,0.12549]
[1731928508506,9.54049152,246.01,245.94,23.776884]
[1731928508709,9.54049152,246.01,245.96,23.776884]
[1731928508917,9.54049152,246.03,245.97,0.12549]
[1731928509301,9.54049152,246.05,245.97,0.25098]
[1731928509621,4.062,246.18,246.04,23.902374]
[1731928509924,9.54049152,246.12,246.05,9.54049152]
[1731928510106,9.54049152,246.12,246.07,0.12549]
[1731928510312,9.54049152,246.14,246.07,0.12549]
[1731928510622,4.0613,246.23,246.09,33.44286552]
[1731928510804,9.54049152,246.19,246.1,12.6396]
[1731928511010,9.54049152,246.24,246.1,12.6396]
[1731928511011,9.54049152,246.14,246.1,12.6396]
[1731928511206,9.54049152,246.12,246.08,30.5516]
[1731928511509,9.54049152,246.1,246.04,12.6396]
[1731928511728,9.54049152,246.12,246.05,0.12549]
[1731928511916,9.54049152,246.14,246.06,9.54049152]
[1731928512426,9.54049152,246.14,246.07,23.776884]
[1731928513107,9.54049152,246.14,246.05,23.902374]
[1731928513306,9.54049152,246.16,246.09,23.776884]
[1731928513511,9.54049152,246.18,246.1,9.54049152]
[1731928513710,9.54049152,246.2,246.13,23.776884]
[1731928513912,30.0,246.14,246.13,23.776884]
[1731928514102,30.0,246.14,246.13,33.56835552]
[1731928514306,9.54049152,246.27,246.14,0.12549]
[1731928514606,9.54049152,246.29,246.22,23.776884]
[1731928514831,9.54049152,246.29,246.21,9.54049152]
[1731928515134,4.0586,246.39,246.24,9.54049152]
[1731928515421,4.0586,246.39,246.25,0.12549]
[1731928515615,4.0586,246.39,246.14,0.12549]
[1731928515616,9.54049152,246.26,246.14,0.12549]
[1731928515807,9.54049152,246.21,246.14,24.027864]
[1731928516017,9.54049152,246.21,246.14,23.776884]
[1731928516615,9.54049152,246.23,246.15,0.12549]
[1731928516810,9.54049152,246.23,246.15,9.66598152]
[1731928517105,9.54049152,246.23,246.16,23.776884]
[1731928517312,160.0,246.38,246.13,44.8568]
[1731928517313,9.54049152,246.17,246.13,44.8568]
[1731928517708,9.54049152,246.23,246.13,54.39729152]
[1731928518030,9.54049152,246.21,246.13,44.8568]
[1731928518422,9.54049152,246.25,246.17,9.54049152]
[1731928518633,9.54049152,246.31,246.23,9.54049152]
[1731928518935,9.54049152,246.33,246.23,9.54049152]
[1731928519149,9.54049152,246.31,246.21,9.54049152]
[1731928519311,22.394792,246.44,246.26,9.54049152]
[1731928519514,9.54049152,246.37,246.29,37.224574]
[1731928520034,9.54049152,246.36,246.29,37.224574]
[1731928520207,15.1995748,246.35,246.29,37.224574]
[1731928521515,15.1995748,246.33,246.29,13.3222]
[1731928521705,15.1995748,246.31,246.28,31.4721]
[1731928521908,15.1995748,246.29,246.23,12.3639]
[1731928522314,15.1995748,246.27,246.23,12.3639]
[1731928522514,15.1995748,246.25,246.23,12.3639]
[1731928523030,15.1995748,246.25,246.14,45.1483]
[1731928523214,15.1995748,246.21,246.14,45.1483]
[1731928524208,15.1995748,246.27,246.18,15.1995748]
[1731928524425,15.1995748,246.29,246.2,15.1995748]
[1731928524930,15.1995748,246.29,246.21,24.027864]
[1731928525135,15.1995748,246.27,246.21,23.776884]
[1731928525836,15.1995748,246.27,246.19,23.902374]
[1731928526137,15.1995748,246.29,246.2,15.1995748]
[1731928526340,15.1995748,246.29,246.21,23.902374]
[1731928527016,15.1995748,246.27,246.21,23.902374]
[1731928527245,15.1995748,246.23,246.14,60.3478748]
[1731928527735,0.1,246.31,246.14,45.1483]
[1731928527736,15.1995748,246.21,246.14,45.1483]
[1731928528912,15.1995748,246.19,246.14,45.1483]
[1731928529313,15.1995748,246.15,246.14,12.6992]
[1731928529652,15.1995748,246.15,246.08,12.4187]
[1731928531441,15.1995748,246.15,246.09,23.902374]
[1731928531646,15.1995748,246.17,246.09,39.1019488]
[1731928531938,15.1995748,246.19,246.11,15.1995748]
[1731928532145,15.1995748,246.12,246.08,12.4187]
[1731928532317,4.0613,246.23,245.76,70.0]
[1731928532318,15.1995748,246.1,246.02,12.5945]
[1731928532519,15.1995748,246.06,246.02,12.5945]
[1731928533330,15.1995748,246.08,246.02,12.5945]
[1731928534447,15.1995748,246.08,246.02,26.8208]
[1731928534827,15.1995748,246.08,246.02,22.7562]
[1731928535027,15.1995748,246.04,245.9,14.2333]
[1731928535240,15.1995748,246.02,245.93,15.1995748]
[1731928536023,15.1995748,246.04,245.95,15.1995748]
[1731928536337,15.1995748,246.06,245.98,0.25098]
[1731928536547,15.1995748,246.06,245.98,0.12549]
[1731928536794,15.1995748,246.06,245.97,15.1995748]
[1731928537042,15.1995748,246.06,245.94,14.231]
[1731928537043,15.1995748,246.08,245.99,15.1995748]
[1731928537231,15.1995748,246.08,246.0,0.12549]
[1731928537432,15.1995748,246.08,245.99,15.1995748]
[1731928537739,15.1995748,246.05,245.97,15.1995748]
[1731928537942,15.1995748,246.05,245.94,14.231]
[1731928537943,15.1995748,246.01,245.94,14.231]
[1731928538521,15.1995748,246.03,245.94,29.4305748]
[1731928539128,15.1995748,246.03,245.94,14.231]
[1731928539331,15.1995748,246.03,245.94,29.4305748]
[1731928540947,15.1995748,246.03,245.95,0.12549]
[1731928541147,15.1995748,246.03,245.96,14.2299]
[1731928541350,15.1995748,246.01,245.94,15.1995748]
[1731928542048,15.1995748,246.01,245.92,15.1995748]
[1731928542429,15.1995748,246.03,245.94,15.1995748]
[1731928542630,15.1995748,246.01,245.94,15.1995748]
[1731928542938,15.1995748,246.01,245.92,15.1995748]
[1731928543136,15.1995748,246.01,245.94,15.1995748]
[1731928543647,15.1995748,246.03,245.94,15.1995748]
[1731928543944,15.1995748,246.05,245.96,15.1995748]
[1731928544337,15.1995748,246.03,245.96,15.1995748]
[1731928544744,15.1995748,246.05,245.96,15.1995748]
[1731928545345,15.1995748,246.05,245.98,15.1995748]
[1731928546039,15.1995748,246.07,245.98,15.1995748]
[1731928546730,15.1995748,246.05,245.98,15.1995748]
[1731928546931,15.1995748,246.04,245.99,14.2282]
[1731928547542,15.1995748,246.05,245.99,14.2282]
[1731928548263,9.52239762,246.05,245.99,14.2282]
[1731928548551,4.0617,246.2,246.04,9.52239762]
[1731928548758,9.52239762,246.14,246.06,9.52239762]
[1731928549054,9.52239762,246.14,246.08,0.12549]
[1731928549258,9.52239762,246.16,246.09,9.52239762]
[1731928549441,9.52239762,246.2,246.12,9.52239762]
[1731928550131,9.52239762,246.19,246.12,9.52239762]
[1731928550344,15.21553212,246.21,246.13,15.34102212]
[1731928550558,15.21553212,246.23,246.15,15.21553212]
[1731928550743,15.21553212,246.21,246.13,15.34102212]
[1731928551255,15.21553212,246.21,246.14,14.2195]
[1731928551648,15.21553212,246.19,246.14,14.2195]
[1731928551960,15.21553212,246.15,246.09,10.1587]
[1731928552637,15.21553212,246.17,246.09,25.37423212]
[1731928553053,15.21553212,246.15,246.09,10.1587]
[1731928553352,15.21553212,246.14,246.09,10.1587]
[1731928554655,15.21553212,246.12,246.09,10.1587]
[1731928555964,15.21553212,246.14,246.09,10.1587]
[1731928557853,15.21553212,246.2,246.1,15.46651212]
[1731928558156,15.21553212,246.2,246.12,15.21553212]
[1731928558349,15.21553212,246.2,246.13,0.25098]
[1731928559358,15.21553212,246.22,246.14,14.2195]
[1731928559561,15.21553212,246.22,246.15,15.21553212]
[1731928559755,15.21553212,246.24,246.16,43.94798]
[1731928560768,15.21553212,246.24,246.17,14.2177]
[1731928561237,0.09367462,246.3,246.17,29.43323212]
[1731928561442,15.21553212,246.26,246.17,29.43323212]
[1731928561863,15.21553212,246.26,246.19,15.21553212]
[1731928562063,15.30920674,246.3,246.21,15.21553212]
[1731928562242,15.30920674,246.3,246.22,0.25098]
[1731928562443,15.30920674,246.3,246.23,15.21553212]
[1731928562742,15.30920674,246.3,246.18,15.21553212]
[1731928562743,15.21553212,246.26,246.18,15.21553212]
[1731928562947,15.21553212,246.26,246.19,0.12549]
[1731928563158,15.21553212,246.28,246.2,15.21553212]
[1731928563365,15.21553212,246.28,246.21,0.12549]
[1731928563661,15.30920674,246.3,246.21,0.12549]
[1731928563862,15.21553212,246.28,246.21,0.25098]
[1731928565057,15.21553212,246.28,246.23,0.12549]
[1731928565764,15.30920674,246.3,246.23,0.25098]
[1731928566265,0.09367462,246.3,246.25,0.25098]
[1731928566887,0.09367462,246.3,246.27,0.25098]
[1731928568264,0.09367462,246.3,246.29,12.75818]
[1731928568673,0.09367462,246.3,246.29,45.53408]
[1731928569191,15.21553212,246.4,246.33,15.21553212]
[1731928569398,15.21553212,246.44,246.37,15.21553212]
[1731928569574,15.21553212,246.44,246.38,0.25098]
[1731928570466,15.21553212,246.41,246.33,15.21553212]
[1731928570671,15.21553212,246.41,246.34,0.25098]
[1731928571048,15.21553212,246.41,246.36,0.25098]
[1731928571563,15.21553212,246.43,246.36,0.25098]
[1731928572671,15.21553212,246.43,246.35,15.21553212]
[1731928572672,15.21553212,246.43,246.38,0.25098]
[1731928574054,15.21553212,246.43,246.38,24.027864]
[1731928574483,15.21553212,246.45,246.4,24.027864]
[1731928574786,15.21553212,246.43,246.4,23.902374]
[1731928574984,15.21553212,246.41,246.33,10.1487]
[1731928575170,15.21553212,246.37,246.33,10.1487]
[1731928575565,15.21553212,246.39,246.33,10.1487]
[1731928576159,15.21553212,246.39,246.34,0.12549]
[1731928576358,15.21553212,246.41,246.35,14.2073]
[1731928576563,15.21553212,246.39,246.35,14.2073]
[1731928576786,15.21553212,246.39,246.36,0.12549]
[1731928576970,15.21553212,246.39,246.36,23.902374]
[1731928577470,15.21553212,246.41,246.36,23.902374]
[1731928577766,15.21553212,246.39,246.38,23.776884]
[1731928577963,15.21553212,246.39,246.36,23.776884]
[1731928578175,15.21553212,246.39,246.35,10.1481]
[1731928578381,15.21553212,246.39,246.36,0.25098]
[1731928578549,15.21553212,246.39,246.31,4.0598]
[1731928578748,15.21553212,246.35,246.31,4.0598]
[1731928578979,15.21553212,246.35,246.29,59.4936]
[1731928580078,15.21553212,246.35,246.3,0.12549]
[1731928580255,9.4984983,246.36,246.3,0.12549]
[1731928580455,9.4984983,246.34,246.3,0.12549]
[1731928580765,9.4984983,246.32,246.24,10.1526]
[1731928580977,9.4984983,246.26,246.19,10.1545]
[1731928581152,9.4984983,246.21,246.19,10.1545]
[1731928581762,9.4984983,246.21,246.17,12.1254]
[1731928581970,9.4984983,246.19,246.13,14.2196]
[1731928582173,4.0614,246.23,246.13,14.2196]
[1731928582174,9.4984983,246.17,246.13,14.2196]
[1731928583467,9.4984983,246.17,246.13,10.1568]
[1731928583769,4.0614,246.23,246.02,0.1]
[1731928583770,9.4984983,246.15,246.07,14.2231]
[1731928583955,9.4984983,246.12,246.07,14.2231]
[1731928584378,20.0,246.28,246.1,15.22565284]
[1731928584679,15.22565284,246.22,246.14,15.22565284]
[1731928584862,15.22565284,246.26,246.16,15.22565284]
[1731928585061,0.1,246.26,246.07,34.5425]
[1731928585260,15.22565284,246.14,246.07,34.5425]
[1731928585474,15.22565284,246.16,246.08,0.12549]
[1731928585778,15.22565284,246.16,246.09,14.2223]
[1731928585964,15.22565284,246.12,246.09,10.1588]
[1731928586365,0.09367462,246.09,245.96,12.2277]
[1731928586579,15.22565284,246.06,245.97,14.2293]
[1731928586767,160.0,246.21,246.04,15.22565284]
[1731928586961,15.22565284,246.15,246.06,15.22565284]
[1731928587479,15.22565284,246.13,246.04,15.22565284]
[1731928587780,15.22565284,246.13,246.06,4.064]
[1731928587968,15.22565284,246.08,246.04,10.1606]
[1731928588165,15.22565284,246.08,245.97,20.3276]
[1731928588166,0.09367462,246.05,245.96,12.2277]
[1731928588359,15.22565284,246.01,245.96,12.2277]
[1731928588560,15.22565284,246.12,245.96,12.2277]
[1731928588769,15.22565284,246.12,245.9,16.2982]
[1731928588770,15.22565284,245.97,245.9,16.2982]
[1731928588960,70.09367462,246.11,245.86,15.22565284]
[1731928588961,15.22565284,245.95,245.87,4.067]
[1731928589171,15.22565284,246.0,245.84,12.2316]
[1731928589172,15.22565284,245.91,245.84,16.2992]
[1731928589374,15.22565284,245.91,245.84,26.4684]
[1731928589679,15.22565284,245.93,245.84,41.69405284]
[1731928589976,15.22565284,245.91,245.84,26.4684]
[1731928590181,15.22565284,245.89,245.84,26.4684]
[1731928590373,15.22565284,245.89,245.84,22.4008]
[1731928590880,15.22565284,245.89,245.84,10.1692]
[1731928591280,0.09367462,245.96,245.8,4.0683]
[1731928591281,15.22565284,245.87,245.8,4.0683]
[1731928592082,15.22565284,245.89,245.8,19.29395284]
[1731928592382,15.22565284,245.93,245.84,15.22565284]
[1731928592981,15.22565284,245.99,245.91,24.027864]